bitfinex-derivatives/quotes_ETHF0:USTF0_20240905
["timestamp","ask_amount","ask_price","bid_price","bid_amount"]
[1725523275949,1.19,2412.2,2412.1,0.369]
[1725523276146,1.19,2412.2,2412.1,1.3428334]
[1725523276342,1.19,2412.2,2412.1,5.4884334]
[1725523277359,1.19,2412.2,2412.1,1.3428334]
[1725523280879,1.19,2412.2,2412.1,1.34285082]
[1725523282047,1.19,2412.2,2412.1,1.71065082]
[1725523282452,1.19,2412.2,2412.1,0.55926082]
[1725523282453,1.60458,2412.2,2412.1,0.55926082]
[1725523282850,0.4146,2412.1,2412.0,0.41461]
[1725523283054,1.6046,2412.1,2412.0,0.9739231]
[1725523283453,1.6046,2412.1,2412.0,0.5593131]
[1725523283658,1.6046,2412.1,2412.0,0.41461]
[1725523283853,1.6046,2412.1,2412.0,0.97392654]
[1725523284049,1.6046,2412.1,2412.0,0.41461]
[1725523284246,1.6046,2412.1,2411.9,0.3678]
[1725523284247,0.41461,2412.0,2411.9,0.78242]
[1725523284451,0.41461,2412.0,2411.9,1.34174792]
[1725523284452,0.78101,2412.0,2411.9,1.34174792]
[1725523284656,0.78101,2412.0,2411.9,0.78242]
[1725523290559,0.41463,2411.9,2411.8,0.41463]
[1725523290861,1.948,2411.9,2411.8,0.41463]
[1725523291256,2.15254799,2411.9,2411.8,0.41463]
[1725523292767,2.56717799,2411.9,2411.8,0.41463]
[1725523294165,2.36263,2411.9,2411.8,0.41463]
[1725523294663,1.948,2411.9,2411.8,0.41463]
[1725523296167,2.36263,2411.9,2411.8,0.41463]
[1725523296463,1.948,2411.9,2411.8,0.41463]
[1725523298070,2.36263,2411.9,2411.8,0.41463]
[1725523298254,1.948,2411.9,2411.8,0.41463]
[1725523298863,2.36263,2411.9,2411.8,0.41463]
[1725523299964,0.758,2411.9,2411.8,0.41463]
[1725523300264,1.19,2411.9,2411.8,0.41463]
[1725523300465,0.3664,2412.0,2411.9,0.41463]
[1725523300666,1.97101,2412.0,2411.9,0.41463]
[1725523301658,1.5564,2412.0,2411.9,0.41463]
[1725523302773,0.7638,2412.2,2411.6,0.3766]
[1725523303072,0.7638,2412.2,2412.1,0.41459]
[1725523303073,0.3661,2412.2,2412.1,0.41459]
[1725523303264,1.5561,2412.2,2412.1,0.41459]
[1725523305869,1.19,2412.2,2412.1,0.41459]
[1725523306072,0.38621311,2412.4,2412.3,0.41456]
[1725523306271,1.57621311,2412.4,2412.3,0.41456]
[1725523307373,1.19621311,2412.4,2412.3,4.56016]
[1725523309364,1.19621311,2412.4,2412.3,5.59656]
[1725523309575,1.19621311,2412.4,2412.3,6.33496]
[1725523309868,1.19621311,2412.4,2412.3,6.89340978]
[1725523310075,0.00621311,2412.4,2412.3,7.92980978]
[1725523310260,0.3736,2413.1,2413.0,0.41444]
[1725523310464,1.9432,2413.1,2413.0,0.41444]
[1725523311266,1.5696,2413.1,2413.0,0.41444]
[1725523313664,1.19,2413.1,2413.0,0.41444]
[1725523317876,1.19,2413.1,2413.0,4.55844]
[1725523318821,1.19,2413.1,2413.0,0.41444]
[1725523319221,1.19,2413.1,2413.0,1.45054]
[1725523320381,1.19,2413.2,2413.1,0.41442]
[1725523320674,1.19,2413.2,2413.1,1.13732]
[1725523320881,0.41445,2412.9,2412.8,0.00621311]
[1725523321210,2.64059,2412.9,2412.8,0.00621311]
[1725523321440,2.64059,2412.9,2412.4,0.41453]
[1725523321441,1.0362,2412.8,2412.4,0.41453]
[1725523321682,0.41455,2412.4,2412.2,0.41456]
[1725523321981,3.6172,2412.3,2412.2,0.41456]
[1725523322680,3.6172,2412.3,2412.0,3.2078]
[1725523322681,4.03176,2412.3,2412.0,3.2078]
[1725523322977,4.03176,2412.3,2412.2,0.41458]
[1725523323571,4.03176,2412.3,2412.0,3.2078]
[1725523323772,3.6172,2412.3,2412.2,0.41458]
[1725523324276,4.03176,2412.3,2412.2,0.41458]
[1725523326382,4.03177,2412.3,2412.1,0.41458]
[1725523326677,0.41458,2412.2,2412.1,0.41458]
[1725523326879,3.6172,2412.3,2412.0,3.2078]
[1725523327079,0.41458,2412.2,2412.1,0.41458]
[1725523327486,4.03177,2412.3,2412.2,0.41458]
[1725523327979,0.41458,2412.2,2412.1,0.41458]
[1725523328375,4.03177,2412.3,2412.2,0.41458]
[1725523328577,0.41458,2412.2,2412.1,0.41458]
[1725523329183,4.03177,2412.3,2412.2,0.41458]
[1725523329371,4.03176,2412.3,2412.2,0.41458]
[1725523329571,3.6172,2412.3,2412.2,0.41458]
[1725523329972,0.386,2412.3,2412.2,0.41458]
[1725523330674,0.386,2412.3,2412.2,3.62238]
[1725523336689,0.77612,2412.6,2412.5,0.41452]
[1725523336888,3.64612,2412.6,2412.5,0.41452]
[1725523339894,3.2078,2413.1,2412.6,1.03625]
[1725523340090,3.2078,2413.1,2413.0,0.41444]
[1725523340091,0.721,2413.1,2413.0,0.41444]
[1725523341585,2.87,2413.2,2413.1,0.41442]
[1725523341992,0.00621311,2413.3,2413.2,0.4144]
[1725523342189,1.19621311,2413.3,2413.2,0.4144]
[1725523342498,0.00621311,2413.3,2413.2,0.4144]
[1725523343593,0.00621311,2413.3,2413.2,7.7662]
[1725523344188,0.00621311,2413.3,2413.2,8.80222]
[1725523344385,0.00621311,2413.3,2413.2,9.18982]
[1725523344591,0.00621311,2413.3,2413.2,15.18982]
[1725523344804,0.3695,2414.0,2413.9,0.41428]
[1725523345306,3.2078,2414.1,2414.0,0.41427]
[1725523345509,0.41423,2414.3,2414.0,0.41427]
[1725523345510,0.3695,2414.3,2414.0,0.41427]
[1725523345695,0.3695,2414.3,2414.2,0.41423]
[1725523347491,3.11e-06,2414.5,2414.4,1.4497]
[1725523347705,3.11e-06,2414.5,2414.4,5.3552]
[1725523347911,3.11e-06,2414.5,2414.4,12.9946]
[1725523348106,3.11e-06,2414.5,2414.4,16.24]
[1725523348399,3.11e-06,2414.5,2414.4,19.11]
[1725523348601,3.5823,2415.6,2415.4,0.41401]
[1725523348806,0.3816,2415.8,2415.2,6.0778]
[1725523349102,4.111,2415.9,2415.6,0.41398]
[1725523349301,4.111,2415.9,2415.7,0.41397]
[1725523349497,4.111,2415.9,2415.6,0.41398]
[1725523350003,4.111,2415.9,2415.7,0.41397]
[1725523350195,4.111,2415.9,2415.6,0.41398]
[1725523351896,3.21401311,2416.0,2415.7,4.1392]
[1725523352101,0.00621311,2416.0,2415.9,0.41394]
[1725523352496,0.00621311,2416.0,2415.9,4.55314]
[1725523354004,0.00621311,2416.0,2415.9,10.55314]
[1725523354307,0.00621311,2416.0,2415.9,4.55314]
[1725523355304,0.00621311,2416.0,2415.9,10.55314]
[1725523356601,0.00621311,2416.0,2415.9,4.55314]
[1725523358008,0.00621311,2416.0,2415.9,10.55314]
[1725523359403,0.00621311,2416.0,2415.9,4.55314]
[1725523359606,0.00621311,2416.0,2415.8,3.2078]
[1725523359804,0.00621311,2416.0,2415.5,3.21401311]
[1725523360009,0.00621311,2416.0,2415.7,0.41397]
[1725523360403,0.00621311,2416.0,2415.9,0.41394]
[1725523360756,0.00621311,2416.0,2415.8,7.347]
[1725523360757,0.00621311,2416.0,2415.8,3.62175]
[1725523360899,0.00621311,2416.0,2415.8,3.2078]
[1725523361105,0.00621311,2416.0,2415.7,0.41397]
[1725523361300,0.42014311,2416.0,2415.5,3.21401311]
[1725523361503,0.42014311,2416.0,2415.7,0.41396]
[1725523361808,0.42014311,2416.0,2415.5,3.21401311]
[1725523361809,0.00621311,2416.0,2415.8,0.41396]
[1725523362207,0.00621311,2416.0,2415.9,0.41394]
[1725523362818,0.42013311,2416.0,2415.7,0.41396]
[1725523363112,0.00621311,2416.0,2415.8,0.41395]
[1725523363313,0.00621311,2416.0,2415.5,3.41814544]
[1725523363513,0.42013311,2416.0,2415.8,0.41396]
[1725523364020,0.00621311,2416.0,2415.8,0.41396]
[1725523364227,0.42013311,2416.0,2415.8,0.41396]
[1725523365405,0.42013311,2416.0,2415.7,0.41396]
[1725523365806,0.42013311,2416.0,2415.8,0.41396]
[1725523366627,0.00621311,2416.0,2415.8,0.41396]
[1725523367810,0.00621311,2416.0,2415.9,0.41394]
[1725523372621,0.00621311,2416.0,2415.9,7.76094]
[1725523372820,0.00621311,2416.0,2415.9,14.7958]
[1725523373014,0.00621311,2416.0,2415.9,16.57496]
[1725523373723,0.00621311,2416.0,2415.9,57.37496]
[1725523374242,0.00621311,2416.0,2415.9,56.3401]
[1725523375927,0.00621311,2416.0,2415.9,15.5401]
[1725523376224,0.00621311,2416.0,2415.9,14.50524]
[1725523377161,0.00621311,2416.0,2415.9,15.5401]
[1725523380434,0.00621311,2416.0,2415.9,14.50524]
[1725523381726,0.00621311,2416.0,2415.9,5.29744]
[1725523382028,0.00621311,2416.0,2415.9,8.50524]
[1725523387815,0.00621311,2416.0,2415.9,7.76094]
[1725523388017,0.42013311,2416.0,2415.6,4.02608]
[1725523388324,0.41394,2415.9,2415.6,4.02608]
[1725523388545,0.42014311,2416.0,2415.6,4.02608]
[1725523388727,0.42014311,2416.0,2415.7,0.41397]
[1725523388728,0.3803,2415.8,2415.7,0.41397]
[1725523389230,0.3803,2415.8,2415.7,4.55317]
[1725523389726,0.00621311,2416.0,2415.9,0.41394]
[1725523390023,0.00621311,2416.0,2415.9,3.28394]
[1725523393421,0.00621311,2416.0,2415.9,3.84071804]
[1725523394125,0.00621311,2416.0,2415.9,3.42677804]
[1725523394326,0.00621311,2416.0,2415.9,3.84071804]
[1725523398922,0.00621311,2416.0,2415.9,3.28394]
[1725523398986,0.00621311,2416.0,2415.9,3.84048168]
[1725523400630,0.00621311,2416.0,2415.9,7.97968168]
[1725523401023,0.00621311,2416.0,2415.9,9.01454168]
[1725523401435,0.00621311,2416.0,2415.9,15.01454168]
[1725523402061,0.00621311,2416.0,2415.9,13.0092]
[1725523402233,0.00621311,2416.0,2415.9,13.56566873]
[1725523407335,0.00621311,2416.0,2415.9,14.65279729]
[1725523408644,0.00621311,2416.0,2415.9,14.09632856]
[1725523408937,0.00621311,2416.0,2415.9,14.65276447]
[1725523409350,4.111,2417.1,2415.9,15.19632876]
[1725523409645,0.7638,2416.9,2416.7,6.0778]
[1725523410431,0.7638,2416.9,2416.7,3.2078]
[1725523413128,1.17757,2416.9,2416.7,3.62159]
[1725523413332,0.41379,2416.8,2416.6,3.62161]
[1725523413546,0.41379,2416.8,2416.6,0.41381]
[1725523413737,0.41383,2416.6,2416.4,0.41385]
[1725523413934,0.725,2416.5,2416.4,0.41385]
[1725523414139,1.13884,2416.5,2416.4,0.41385]
[1725523414334,0.725,2416.5,2416.4,0.41385]
[1725523414738,1.13884,2416.5,2416.4,0.41385]
[1725523414933,1.13884,2416.5,2416.3,3.28386]
[1725523415138,0.3849,2416.4,2416.3,3.28386]
[1725523415948,0.3849,2416.4,2416.3,3.83993917]
[1725523417645,0.3849,2416.4,2416.3,0.55607917]
[1725523417646,1.83339,2416.4,2416.3,0.55607917]
[1725523417844,0.4139,2416.2,2415.9,6.0778]
[1725523418043,0.4139,2416.2,2416.0,0.97016306]
[1725523418244,0.3769,2416.1,2416.0,0.41392]
[1725523418646,0.3769,2416.1,2416.0,0.97016283]
[1725523421839,0.79081,2416.1,2416.0,0.55624283]
[1725523422145,0.41392,2416.0,2415.9,3.2078]
[1725523422361,0.79862,2416.0,2415.9,3.2078]
[1725523423051,0.79862,2416.0,2415.9,3.62174]
[1725523423260,0.79862,2416.0,2415.9,3.2078]
[1725523423441,0.41395,2415.9,2415.7,3.28397]
[1725523423641,0.3891,2415.9,2415.8,0.41396]
[1725523423842,0.80305,2415.9,2415.7,3.28397]
[1725523424951,0.3891,2415.9,2415.8,0.41396]
[1725523425157,0.80304,2415.9,2415.7,3.28396]
[1725523426244,0.3891,2415.9,2415.7,2.87]
[1725523426646,0.41396,2415.8,2415.7,2.87]
[1725523427042,0.41399,2415.7,2415.5,44.09021311]
[1725523427247,0.3835,2415.6,2415.5,3.29021311]
[1725523427744,0.3835,2415.6,2415.5,3.84648064]
[1725523428248,0.3835,2415.6,2415.5,3.29021311]
[1725523436254,0.3835,2415.6,2415.5,0.42021311]
[1725523438061,0.3835,2415.6,2415.5,1.61021311]
[1725523441904,0.3552,2415.7,2415.6,0.41399]
[1725523443455,0.00621311,2415.8,2415.7,1.44891]
[1725523443661,0.00621311,2415.8,2415.7,3.37151]
[1725523443857,0.00621311,2415.8,2415.7,3.75911]
[1725523444161,0.00621311,2415.8,2415.7,14.93325]
[1725523445862,0.00621311,2415.8,2415.7,15.48953186]
[1725523446877,4.4891,2416.6,2415.7,15.48953186]
[1725523446878,4.111,2416.6,2415.7,12.4494]
[1725523447176,0.7392,2416.7,2416.6,0.41382]
[1725523447267,0.7392,2416.7,2416.3,1.19]
[1725523447268,1.153,2416.7,2416.3,1.19]
[1725523447469,1.153,2416.7,2416.5,0.41383]
[1725523447765,0.7392,2416.7,2416.5,0.41383]
[1725523448266,1.15301,2416.7,2416.4,1.15044]
[1725523448466,1.15301,2416.7,2416.5,0.41383]
[1725523449266,1.15301,2416.7,2416.4,1.15044]
[1725523449456,0.41382,2416.6,2416.4,1.15044]
[1725523449767,0.41383,2416.6,2416.4,1.15045]
[1725523449965,0.7392,2416.7,2416.5,0.41383]
[1725523449966,1.15301,2416.7,2416.5,0.41383]
[1725523450684,1.15301,2416.7,2416.6,0.41382]
[1725523450763,0.7392,2416.7,2416.6,0.41382]
[1725523451165,5.2906,2416.7,2416.5,0.41383]
[1725523451366,1.153,2416.7,2416.5,0.41383]
[1725523451873,1.153,2416.7,2416.6,0.41382]
[1725523452170,1.153,2416.7,2416.5,0.41383]
[1725523452379,0.7392,2416.7,2416.6,0.41382]
[1725523453170,4.8768,2416.7,2416.6,0.41382]
[1725523453670,0.7392,2416.7,2416.6,0.41382]
[1725523453895,5.2906,2416.7,2416.5,0.41382]
[1725523454167,5.2906,2416.7,2416.4,1.9266]
[1725523454168,0.7392,2416.7,2416.4,1.19]
[1725523454477,0.41382,2416.6,2416.5,0.41383]
[1725523454971,1.15301,2416.7,2416.4,1.19]
[1725523455275,1.15301,2416.7,2416.5,0.41383]
[1725523455471,0.41382,2416.6,2416.5,0.41383]
[1725523456273,1.15301,2416.7,2416.6,0.41382]
[1725523459572,0.7392,2416.7,2416.6,0.41382]
[1725523459875,4.8768,2416.7,2416.6,0.41382]
[1725523460083,0.7392,2416.7,2416.6,0.41382]
[1725523462283,5.2906,2416.7,2416.6,0.41382]
[1725523462471,1.153,2416.7,2416.6,0.41382]
[1725523463077,0.41382,2416.6,2416.5,0.41383]
[1725523463277,1.15301,2416.7,2416.6,0.41382]
[1725523470275,1.15301,2416.7,2416.5,1.19]
[1725523470582,1.15301,2416.7,2416.5,1.60383]
[1725523471281,0.7392,2416.7,2416.6,0.41382]
[1725523472186,0.7392,2416.7,2416.5,1.60383]
[1725523472485,1.153,2416.7,2416.5,1.60383]
[1725523473680,0.7392,2416.7,2416.5,1.60383]
[1725523475185,0.7392,2416.7,2416.6,0.355]
[1725523476480,1.15301,2416.7,2416.5,1.19]
[1725523476886,1.15301,2416.7,2416.3,0.41387]
[1725523476887,4.55222,2416.6,2416.3,0.41387]
[1725523477185,3.62164,2416.5,2416.2,1.60388]
[1725523477484,0.3873,2416.4,2416.3,0.41387]
[1725523480682,3.2078,2416.5,2416.3,1.60387]
[1725523481785,0.80703,2416.6,2416.3,1.60387]
[1725523482195,0.3932,2416.6,2416.4,0.41385]
[1725523482491,0.80702,2416.6,2416.4,0.80375]
[1725523482691,0.3932,2416.6,2416.4,0.80375]
[1725523482991,0.80703,2416.6,2416.4,0.3899]
[1725523483191,0.3932,2416.6,2416.4,0.3899]
[1725523483392,0.3932,2416.6,2416.5,1.19]
[1725523483589,0.7392,2416.7,2416.5,1.19]
[1725523484084,0.7392,2416.7,2416.6,0.41382]
[1725523485187,0.3715,2416.7,2416.6,0.41382]
[1725523485393,0.3715,2416.7,2416.6,0.79102]
[1725523486098,0.7853,2416.7,2416.6,0.3772]
[1725523486297,0.7853,2416.7,2416.6,0.79102]
[1725523486298,0.3715,2416.7,2416.6,0.79102]
[1725523487693,0.3715,2416.7,2416.6,0.3772]
[1725523487694,0.7853,2416.7,2416.6,0.3772]
[1725523487899,0.7853,2416.7,2416.5,1.60383]
[1725523488199,0.3715,2416.7,2416.6,0.41382]
[1725523488493,0.00621311,2416.8,2416.7,0.4138]
[1725523488699,0.00621311,2416.8,2416.7,1.0927]
[1725523488895,0.00621311,2416.8,2416.7,6.97775617]
[1725523489091,0.00621311,2416.8,2416.7,1.65015617]
[1725523489301,0.00621311,2416.8,2416.7,0.55745617]
[1725523489701,0.00621311,2416.8,2416.4,42.40385]
[1725523489702,0.42000311,2416.8,2416.4,42.40385]
[1725523489994,0.42000311,2416.8,2416.5,0.55756084]
[1725523489995,1.61000311,2416.8,2416.5,0.55756084]
[1725523490196,0.41382,2416.6,2416.3,2.68847]
[1725523490463,0.3933,2416.5,2416.4,0.55758839]
[1725523491094,0.3933,2416.5,2416.3,1.9149]
[1725523491310,0.3933,2416.5,2416.4,0.55763452]
[1725523492103,0.80714,2416.5,2416.4,0.55763452]
[1725523493300,4.94554,2416.5,2416.4,0.55763452]
[1725523493497,4.94554,2416.5,2415.9,1.5748]
[1725523493498,0.41388,2416.3,2415.9,1.5748]
[1725523493698,3.964,2416.2,2415.9,1.5748]
[1725523493897,0.3854,2416.1,2416.0,2.16145753]
[1725523494295,0.3854,2416.1,2416.0,1.74753753]
[1725523494532,0.3854,2416.1,2416.0,1.19]
[1725523494703,0.3854,2416.1,2416.0,1.7475468]
[1725523495899,0.79931,2416.1,2416.0,0.5575468]
[1725523496693,4.93851,2416.1,2416.0,0.5575468]
[1725523497197,4.93851,2416.1,2415.7,1.19]
[1725523497198,0.41394,2416.0,2415.7,1.19]
[1725523497402,0.41394,2416.0,2415.8,0.55765947]
[1725523497593,0.41394,2416.0,2415.9,0.55765947]
[1725523497919,0.41394,2416.0,2415.8,1.19]
[1725523497997,0.3854,2416.1,2415.9,0.97159391]
[1725523498217,0.3854,2416.1,2415.9,0.41393]
[1725523499001,0.79931,2416.1,2415.8,1.60395]
[1725523499203,0.79931,2416.1,2415.9,0.97164396]
[1725523499399,0.79931,2416.1,2415.8,1.60395]
[1725523499705,0.41392,2416.0,2415.8,1.60395]
[1725523499896,0.79932,2416.1,2415.8,1.60395]
[1725523500109,0.41393,2416.0,2415.8,1.19]
[1725523500608,0.41396,2415.8,2415.5,1.93661311]
[1725523500897,0.41393,2416.0,2415.7,0.41396]
[1725523501104,0.41393,2416.0,2415.8,1.60396]
[1725523501398,0.41393,2416.0,2415.8,1.19]
[1725523501904,0.41394,2415.9,2415.8,1.5625]
[1725523502106,0.41393,2416.0,2415.8,1.5625]
[1725523502301,0.7437,2416.1,2415.8,1.5625]
[1725523502506,0.41394,2416.0,2415.8,1.5625]
[1725523502791,0.7437,2416.1,2415.9,1.19]
[1725523502907,0.7437,2416.1,2415.9,1.96883]
[1725523503208,1.15761,2416.1,2415.9,1.96883]
[1725523504302,0.41392,2416.0,2415.8,1.60395]
[1725523505099,1.15762,2416.1,2415.9,0.41394]
[1725523505506,0.41393,2416.0,2415.8,1.60395]
[1725523506204,1.15762,2416.1,2415.9,0.41393]
[1725523507703,1.15762,2416.1,2416.0,0.3938]
[1725523508108,5.29682,2416.1,2416.0,0.3938]
[1725523508411,0.41392,2416.0,2415.8,1.60394]
[1725523509097,0.41392,2416.0,2415.8,0.41394]
[1725523509313,0.7437,2416.1,2415.8,0.41394]
[1725523509499,0.41394,2416.0,2415.8,0.41394]
[1725523510504,0.41394,2416.0,2415.9,0.41394]
[1725523510807,0.41394,2415.9,2415.8,1.60395]
[1725523511101,0.80573,2416.0,2415.9,0.41394]
[1725523511304,3.2078,2416.2,2416.0,0.41392]
[1725523511611,3.2078,2416.2,2416.1,1.54001]
[1725523512571,0.3683,2416.4,2416.1,2.73001]
[1725523512703,0.3683,2416.4,2416.3,0.41387]
[1725523513907,0.78215,2416.4,2416.3,0.41387]
[1725523514213,0.41387,2416.3,2416.2,0.41388]
[1725523514421,0.41389,2416.2,2416.1,1.53999]
[1725523514715,1.5583,2416.4,2416.1,1.1261]
[1725523514716,0.41388,2416.3,2416.1,1.1261]
[1725523514905,0.41388,2416.3,2416.2,0.41389]
[1725523515105,0.41388,2416.3,2416.1,1.1261]
[1725523515305,0.41388,2416.3,2416.2,0.41389]
[1725523518013,0.41388,2416.3,2416.1,1.53999]
[1725523518237,0.41389,2416.2,2416.1,1.1261]
[1725523518814,0.41389,2416.2,2416.1,1.54001]
[1725523519222,0.41389,2416.2,2416.1,1.1261]
[1725523519523,0.41389,2416.2,2416.1,0.7477]
[1725523519925,0.41389,2416.2,2416.1,1.16161]
[1725523520222,0.41389,2416.2,2416.1,0.3554]
[1725523521113,0.41389,2416.2,2415.8,1.546]
[1725523521114,4.7682,2416.3,2415.8,0.356]
[1725523521319,3.62173,2416.0,2415.9,0.41394]
[1725523521623,0.41393,2416.0,2415.9,0.41394]
[1725523522621,0.41393,2416.0,2415.8,1.546]
[1725523522622,0.41394,2415.9,2415.8,1.95995]
[1725523522919,0.41393,2416.0,2415.9,0.41394]
[1725523523223,0.7254,2416.1,2415.9,0.41394]
[1725523523224,1.13932,2416.1,2415.9,0.41394]
[1725523523520,0.366,2416.1,2416.0,0.41392]
[1725523523716,0.77991,2416.1,2416.0,0.41392]
[1725523524023,0.366,2416.1,2416.0,0.41392]
[1725523524915,0.77668,2416.3,2416.2,0.41389]
[1725523525924,0.77668,2416.3,2416.1,0.7566]
[1725523525925,0.41389,2416.2,2416.1,1.17049]
[1725523527821,0.41389,2416.2,2416.1,0.79799]
[1725523528020,0.79409,2416.2,2416.1,0.79799]
[1725523528216,0.79409,2416.2,2416.1,0.41389]
[1725523529517,0.41389,2416.2,2416.1,0.41389]
[1725523531419,0.41389,2416.2,2416.0,1.19]
[1725523531420,0.41391,2416.1,2416.0,1.60391]
[1725523531617,0.3679,2416.1,2416.0,1.60391]
[1725523532057,0.78181,2416.1,2416.0,1.60391]
[1725523532125,0.3679,2416.1,2416.0,1.60391]
[1725523532426,0.3679,2416.1,2416.0,0.41391]
[1725523532622,0.78181,2416.1,2416.0,0.41391]
[1725523533821,0.3679,2416.1,2416.0,0.41391]
[1725523534626,0.78181,2416.1,2416.0,0.41391]
[1725523535297,0.78181,2416.1,2416.0,0.971402]
[1725523535420,0.78181,2416.1,2416.0,0.41391]
[1725523535720,0.78181,2416.1,2416.0,0.97138901]
[1725523535924,0.3679,2416.1,2416.0,0.97138901]
[1725523536724,3.98448,2416.3,2416.2,0.41389]
[1725523537026,4.37578,2416.3,2416.2,0.41389]
[1725523537427,4.37578,2416.3,2416.2,0.78589]
[1725523537627,0.41388,2416.3,2416.2,0.78589]
[1725523537933,0.41388,2416.3,2416.2,0.7349]
[1725523538127,5.53691,2416.5,2416.3,0.41386]
[1725523538128,0.41386,2416.4,2416.3,0.41386]
[1725523538340,0.41386,2416.4,2416.3,0.41387]
[1725523538826,4.91615,2416.5,2416.4,0.41385]
[1725523539021,4.5023,2416.5,2416.4,0.41385]
[1725523539921,0.3913,2416.5,2416.4,0.41385]
[1725523540528,0.80514,2416.5,2416.4,0.41385]
[1725523542126,0.80514,2416.5,2416.3,0.41386]
[1725523542127,0.41386,2416.4,2416.3,0.41386]
[1725523542526,0.41386,2416.4,2416.1,0.4139]
[1725523542527,0.4139,2416.2,2416.1,0.4139]
[1725523542727,3.6217,2416.2,2416.1,0.4139]
[1725523543027,0.41391,2416.1,2416.0,0.41391]
[1725523543233,0.77661,2416.1,2416.0,0.55720537]
[1725523543426,0.3627,2416.1,2416.0,0.41392]
[1725523543622,0.41392,2416.0,2415.9,1.96673]
[1725523543935,0.3627,2416.1,2416.0,0.41392]
[1725523543936,0.77662,2416.1,2416.0,0.41392]
[1725523544725,0.77662,2416.1,2416.0,0.97104839]
[1725523545030,3.62169,2416.2,2416.1,0.41391]
[1725523545629,1.14188,2416.3,2416.2,0.41389]
[1725523545829,3.2078,2416.6,2416.1,1.19]
[1725523546022,4.00823,2416.6,2416.4,0.41385]
[1725523546427,0.41384,2416.5,2416.4,0.41385]
[1725523547436,0.41384,2416.5,2416.2,1.9389]
[1725523547437,0.41384,2416.5,2416.3,0.41386]
[1725523547931,0.41384,2416.5,2416.4,0.41385]
[1725523548233,4.00823,2416.6,2416.4,0.41384]
[1725523549023,0.80043,2416.6,2416.4,0.41384]
[1725523549226,4.00823,2416.6,2416.4,0.41384]
[1725523549934,4.00823,2416.6,2416.5,0.41384]
[1725523550734,4.00823,2416.6,2416.4,0.41384]
[1725523551226,3.2078,2416.6,2416.5,0.41384]
[1725523551422,3.5872,2416.6,2416.5,0.41384]
[1725523552057,4.00102,2416.6,2416.5,0.3622]
[1725523552233,4.00102,2416.6,2416.4,0.41384]
[1725523552234,0.41384,2416.5,2416.4,0.41384]
[1725523552436,4.00103,2416.6,2416.4,0.41384]
[1725523552829,4.00103,2416.6,2416.5,0.41384]
[1725523553139,3.2078,2416.6,2416.5,0.41384]
[1725523553440,0.38081311,2416.8,2416.7,0.4138]
[1725523553634,0.79460311,2416.8,2416.7,0.4138]
[1725523555934,0.4138,2416.7,2416.6,0.41381]
[1725523556130,1.1599,2416.7,2416.6,0.41381]
[1725523556528,0.7461,2416.7,2416.6,0.41381]
[1725523557046,1.1599,2416.7,2416.6,0.41381]
[1725523557538,0.7461,2416.7,2416.6,0.41381]
[1725523557739,1.1599,2416.7,2416.6,0.41381]
[1725523559233,0.7461,2416.7,2416.6,0.41381]
[1725523559842,1.1599,2416.7,2416.6,0.41381]
[1725523560147,0.41382,2416.6,2416.5,0.41383]
[1725523560338,1.15991,2416.7,2416.6,0.41382]
[1725523561844,0.79460311,2416.8,2416.7,0.4138]
[1725523562140,1.41529311,2416.8,2416.4,0.3812]
[1725523562337,1.41529311,2416.8,2416.2,2.35217]
[1725523562338,0.41387,2416.4,2416.2,2.35217]
[1725523562645,5.15169311,2416.8,2416.4,0.41385]
[1725523562840,0.41383,2416.6,2416.5,1.97834]
[1725523563039,5.15169311,2416.8,2416.5,1.5645]
[1725523563040,4.11721311,2416.8,2416.5,1.5645]
[1725523563232,4.11721311,2416.8,2416.7,0.4138]
[1725523563433,0.00621311,2416.8,2416.7,0.4138]
[1725523566642,0.00621311,2416.8,2416.7,4.5514]
[1725523567372,0.00621311,2416.8,2416.7,5.58592]
[1725523567640,0.00621311,2416.8,2416.7,11.65372]
[1725523568535,0.00621311,2416.8,2416.7,12.21052434]
[1725523570138,0.00621311,2416.8,2416.7,18.21052434]
[1725523570531,0.00621311,2416.8,2416.7,4.5514]
[1725523570745,0.00621311,2416.8,2416.7,0.4138]
[1725523570950,0.00621311,2416.8,2416.7,3.6216]
[1725523572530,0.00621311,2416.8,2416.7,7.7592]
[1725523574739,0.00621311,2416.8,2416.7,3.6216]
[1725523579047,0.00621311,2416.8,2416.7,6.4816]
[1725523580050,0.00621311,2416.8,2416.7,3.6216]
[1725523580445,0.39741311,2416.8,2416.7,3.6216]
[1725523580762,0.81120311,2416.8,2416.7,3.6216]
[1725523581248,1.19900311,2416.8,2416.7,3.6216]
[1725523582643,1.19900311,2416.8,2416.7,0.4138]
[1725523584012,1.19900311,2416.8,2416.0,40.8]
[1725523584013,1.03452,2416.7,2416.0,40.8]
[1725523584141,0.41394,2415.9,2415.7,0.41397]
[1725523584339,3.2078,2416.3,2415.8,0.41396]
[1725523584340,0.41391,2416.1,2415.8,0.41396]
[1725523584545,0.80191,2416.1,2415.9,0.97146559]
[1725523584738,0.80191,2416.1,2415.8,2.86]
[1725523584950,0.80191,2416.1,2415.9,0.95073438]
[1725523585149,0.41392,2416.0,2415.9,0.3932]
[1725523585343,0.41392,2416.0,2415.8,3.27395]
[1725523585541,0.41392,2416.0,2415.9,0.55755773]
[1725523586651,0.80192,2416.1,2415.9,0.55755773]
[1725523586956,0.80192,2416.1,2415.8,3.27395]
[1725523588656,0.388,2416.1,2415.7,0.41396]
[1725523589057,0.41394,2416.0,2415.7,0.41396]
[1725523589459,0.41394,2415.9,2415.7,0.41396]